lending/lending_fUSD_20241005
["ID","MTS","AMOUNT","RATE_DAILY","PERIOD"]
[339907254,1728147178644,-958.76,0.00042876,120]
[339907255,1728147178654,-500.0,0.00042876,120]
[339907256,1728147178664,-521.35,0.00042876,120]
[339907257,1728147178674,-500.0,0.00042876,120]
[339907258,1728147178684,-772.75,0.00042876,120]
[339907259,1728147178694,-957.22,0.00042876,120]
[339907260,1728147178704,-1182.56,0.00042876,120]
[339907261,1728147178714,-658.49,0.00042876,120]
[339907262,1728147178723,-500.0,0.00042876,120]
[339907263,1728147178732,-500.0,0.00042876,120]
[339907264,1728147178741,-500.0,0.00042876,120]
[339907265,1728147178750,-764.47,0.00042876,120]
[339907266,1728147178760,-1230.05,0.00042876,120]
[339907267,1728147178769,-500.0,0.00042876,120]
[339907268,1728147178778,-872.43,0.00042876,120]
[339907269,1728147178789,-500.0,0.00042876,120]
[339907270,1728147178798,-611.65,0.00042876,120]
[339907271,1728147178807,-842.7,0.00042876,120]
[339907272,1728147178817,-591.66846291,0.00042876,120]
[339907273,1728147178827,-500.0,0.00042876,120]
[339907274,1728147178836,-821.45,0.00042876,120]
[339907275,1728147178846,-1020.54,0.00042876,120]
[339907276,1728147178855,-508.95,0.00042876,120]
[339907277,1728147178865,-500.0,0.00042876,120]
[339907278,1728147178874,-500.0,0.00042876,120]
[339907279,1728147178884,-500.0,0.00042876,120]
[339907280,1728147178893,-1095.31,0.00042876,120]
[339907281,1728147178903,-500.0,0.00042876,120]
[339907282,1728147178912,-1129.38,0.00042876,120]
[339907283,1728147178922,-500.0,0.00042876,120]
[339907284,1728147178931,-500.0,0.00042876,120]
[339907285,1728147178941,-500.0,0.00042876,120]
[339907286,1728147178950,-500.0,0.00042876,120]
[339907287,1728147178959,-500.0,0.00042876,120]
[339907288,1728147178969,-794.7,0.00042876,120]
[339907289,1728147178978,-648.03381849,0.00042876,120]
[339907290,1728147178989,-830.85,0.00042876,120]
[339907291,1728147178998,-500.0,0.00042876,120]
[339907292,1728147179008,-1027.89,0.00042876,120]
[339907293,1728147179018,-443.29813875,0.00042876,120]
[339907294,1728147179027,-500.0,0.00042876,120]
[339907295,1728147179037,-1487.21,0.00042876,120]
[339907296,1728147179046,-1056.64,0.00042876,120]
[339907297,1728147179056,-500.0,0.00042876,120]
[339907298,1728147179065,-500.0,0.00042876,120]
[339907299,1728147179074,-273.8168392,0.00042876,120]
[339907300,1728147179084,-500.0,0.00042876,120]
[339907301,1728147179093,-966.23,0.00042876,120]
[339907302,1728147179104,-1402.9,0.00042876,120]
[339907303,1728147179114,-155.637596,0.00042876,120]
[339907304,1728147179125,-500.0,0.00042876,120]
[339907305,1728147179135,-500.0,0.00042876,120]
[339907306,1728147179145,-500.0,0.00042876,120]
[339907307,1728147179154,-500.0,0.00042876,120]
[339907308,1728147179164,-605.78,0.00042876,120]
[339907309,1728147179173,-500.0,0.00042876,120]
[339907310,1728147179182,-534.83,0.00042876,120]
[339907311,1728147179192,-1181.15,0.00042876,120]
[339907312,1728147179201,-500.0,0.00042876,120]
[339907313,1728147179210,-540.58,0.00042876,120]
[339907314,1728147179219,-567.65,0.00042876,120]
[339907315,1728147179229,-602.72,0.00042876,120]
[339907316,1728147179237,-942.98,0.00042876,120]
[339907317,1728147179247,-500.0,0.00042876,120]
[339907318,1728147179256,-500.0,0.00042876,120]
[339907319,1728147179266,-500.0,0.00042876,120]
[339907320,1728147179275,-739.94,0.00042876,120]
[339907321,1728147179284,-1122.04,0.00042876,120]
[339907322,1728147179294,-570.69729194,0.00042876,120]
[339907323,1728147179304,-1176.15,0.00042876,120]
[339907324,1728147179316,-960.92,0.00042876,120]
[339907325,1728147179326,-500.0,0.00042876,120]
[339907326,1728147179337,-1087.37,0.00042876,120]
[339907327,1728147179349,-500.0,0.00042876,120]
[339907328,1728147179358,-548.14,0.00042876,120]
[339907329,1728147179369,-500.0,0.00042876,120]
[339907330,1728147179379,-500.0,0.00042876,120]
[339907331,1728147179390,-255.38607,0.00042876,120]
[339907332,1728147179401,-894.57,0.00042876,120]
[339907333,1728147179410,-808.84,0.00042876,120]
[339907334,1728147179420,-500.0,0.00042876,120]
[339907335,1728147179432,-500.0,0.00042876,120]
[339907336,1728147179443,-744.22,0.00042876,120]
[339907337,1728147179453,-795.88,0.00042876,120]
[339907338,1728147179463,-500.0,0.00042876,120]
[339907339,1728147179473,-1106.31,0.00042876,120]
[339907340,1728147179482,-500.0,0.00042876,120]
[339907341,1728147179492,-719.91,0.00042876,120]
[339907342,1728147179504,-912.73,0.00042876,120]
[339907343,1728147179514,-519.73,0.00042876,120]
[339907344,1728147179523,-1177.68,0.00042876,120]
[339907345,1728147179533,-780.08,0.00042876,14]
[339907346,1728147179542,-789.28,0.00042876,120]
[339907347,1728147179552,-669.75,0.00042876,120]
[339907348,1728147179562,-750.93,0.00042876,120]
[339907349,1728147179573,-704.169704,0.00042876,120]
[339907350,1728147179583,-1092.22,0.00042876,120]
[339907351,1728147179594,-535.24,0.00042876,120]
[339907352,1728147179603,-1378.36,0.00042876,120]
[339907353,1728147179612,-745.48,0.00042876,120]
[339907354,1728147179622,-500.0,0.00042876,120]
[339907355,1728147179631,-500.0,0.00042876,120]
[339907356,1728147179641,-1306.31,0.00042876,120]
[339907357,1728147179651,-500.0,0.00042876,120]
[339907358,1728147179661,-524.51,0.00042876,120]
[339907359,1728147179670,-500.0,0.00042876,120]
[339907360,1728147179680,-513.93,0.00042876,120]
[339907361,1728147179690,-645.77,0.00042876,120]
[339907362,1728147179700,-833.87,0.00042876,120]
[339907363,1728147179709,-1307.93,0.00042876,120]
[339907364,1728147179719,-500.0,0.00042876,120]
[339907365,1728147179729,-632.30686747,0.00042876,120]
[339907366,1728147179739,-1199.16,0.00042876,120]
[339907367,1728147179748,-500.0,0.00042876,120]
[339907368,1728147179758,-500.0,0.00042876,120]
[339907369,1728147179767,-500.0,0.00042876,120]
[339907370,1728147179777,-500.0,0.00042876,120]
[339907371,1728147179787,-985.84,0.00042876,120]
[339907372,1728147179796,-500.0,0.00042876,120]
[339907373,1728147179805,-1049.3,0.00042876,120]
[339907374,1728147179815,-1294.19,0.00042876,120]
[339907375,1728147179825,-793.27,0.00042876,120]
[339907376,1728147179834,-500.0,0.00042876,120]
[339907377,1728147179843,-500.0,0.00042876,120]
[339907378,1728147179853,-500.0,0.00042876,120]
[339907379,1728147179862,-2888.1,0.00042876,120]
[339907380,1728147179872,-687.14,0.00042876,120]
[339907381,1728147179881,-304.65085583,0.00042876,120]
[339907382,1728147179891,-989.98,0.00042876,120]
[339907383,1728147179901,-500.0,0.00042876,120]
[339907384,1728147179910,-1432.95,0.00042876,120]
[339907385,1728147179919,-550.68,0.00042876,120]
[339907386,1728147179929,-724.21,0.00042876,120]
[339907387,1728147179938,-543.28,0.00042876,120]
[339907388,1728147179947,-500.0,0.00042876,120]
[339907389,1728147179956,-753.39,0.00042876,120]
[339907390,1728147179966,-807.23,0.00042876,120]
[339907391,1728147179975,-500.0,0.00042876,120]
[339907392,1728147179984,-500.0,0.00042876,120]
[339907393,1728147179993,-708.64,0.00042876,120]
[339907394,1728147180002,-562.5,0.00042876,120]
[339907395,1728147180012,-500.0,0.00042876,120]
[339907396,1728147180021,-687.72,0.00042876,120]
[339907397,1728147180030,-500.0,0.00042876,120]
[339907398,1728147180041,-1195.82,0.00042876,120]
[339907399,1728147180051,-905.32,0.00042876,7]
[339907400,1728147180060,-1289.36,0.00042876,120]
[339907401,1728147180069,-968.05,0.00042876,120]
[339907402,1728147180079,-1417.19,0.00042876,120]
[339907403,1728147180088,-763.68,0.00042876,120]
[339907404,1728147180097,-500.0,0.00042876,120]
[339907405,1728147180106,-1687.35,0.00042876,120]
[339907406,1728147180116,-888.0,0.00042876,120]
[339907407,1728147180125,-785.36,0.00042876,120]
[339907408,1728147180135,-500.0,0.00042876,120]
[339907409,1728147180144,-500.0,0.00042876,120]
[339907410,1728147180153,-582.36,0.00042876,120]
[339907411,1728147180163,-1179.64,0.00042876,120]
[339907412,1728147180172,-505.48316588,0.00042876,120]
[339907413,1728147180180,-643.53,0.00042876,120]
[339907414,1728147180190,-1536.92,0.00042876,120]
[339907415,1728147180199,-1213.33,0.00042876,120]
[339907416,1728147180208,-533.33,0.00042876,120]
[339907417,1728147180217,-711.86,0.00042876,120]
[339907418,1728147180227,-500.0,0.00042876,120]
[339907419,1728147180236,-1142.18,0.00042876,120]
[339907420,1728147180245,-786.32,0.00042876,120]
[339907421,1728147180255,-1479.11,0.00042876,120]
[339907422,1728147180264,-500.0,0.00042876,120]
[339907423,1728147180273,-540.53,0.00042876,120]
[339907424,1728147180283,-649.26,0.00042876,120]
[339907425,1728147180299,-903.52,0.00042876,120]
[339907426,1728147180309,-500.0,0.00042876,120]
[339907427,1728147180319,-500.0,0.00042876,120]
[339907428,1728147180328,-500.0,0.00042876,120]
[339907429,1728147180337,-642.95,0.00042876,120]
[339907430,1728147180347,-915.1,0.00042876,120]
[339907431,1728147180357,-500.0,0.00042876,120]
[339907432,1728147180366,-500.0,0.00042876,120]
[339907433,1728147180376,-1032.8,0.00042876,120]
[339907434,1728147180385,-539.54605691,0.00042876,120]
[339907435,1728147180394,-500.0,0.00042876,120]
[339907436,1728147180403,-931.55,0.00042876,120]
[339907437,1728147180412,-1521.03,0.00042876,120]
[339907438,1728147180425,-500.0,0.00042876,120]
[339907439,1728147180435,-901.49,0.00042876,120]
[339907440,1728147180444,-500.0,0.00042876,120]
[339907441,1728147180454,-1061.61,0.00042876,120]
[339907442,1728147180463,-1304.21,0.00042876,120]
[339907443,1728147180473,-701.97,0.00042876,120]
[339907444,1728147180482,-1011.56,0.00042876,120]
[339907445,1728147180492,-534.36,0.00042876,120]
[339907446,1728147180501,-589.66,0.00042876,120]
[339907447,1728147180510,-500.0,0.00042876,120]
[339907448,1728147180519,-512.82,0.00042876,120]
[339907449,1728147180528,-500.0,0.00042876,120]
[339907450,1728147180537,-436.45285723,0.00042876,120]
[339907451,1728147180546,-1198.94,0.00042876,120]
[339907452,1728147180555,-500.0,0.00042876,120]
[339907453,1728147180564,-836.31,0.00042876,120]
[339907454,1728147180574,-908.97,0.00042876,120]
[339907455,1728147180583,-714.05,0.00042876,120]
[339907456,1728147180592,-500.0,0.00042876,120]
[339907457,1728147180601,-787.9,0.00042876,120]
[339907458,1728147180610,-500.0,0.00042876,120]
[339907459,1728147180620,-530.83,0.00042876,120]
[339907460,1728147180630,-1485.49,0.00042876,120]
[339907461,1728147180639,-500.0,0.00042876,120]
[339907462,1728147180649,-500.0,0.00042876,120]
[339907463,1728147180658,-500.0,0.00042876,120]
[339907464,1728147180668,-763.04,0.00042876,120]
[339907465,1728147180677,-518.08,0.00042876,120]
[339907466,1728147180687,-500.0,0.00042876,120]
[339907467,1728147180696,-500.0,0.00042876,120]
[339907468,1728147180706,-563.43,0.00042876,120]
[339907469,1728147180715,-612.29,0.00042876,120]
[339907470,1728147180725,-500.0,0.00042876,120]
[339907471,1728147180735,-822.39,0.00042876,120]
[339907472,1728147180745,-500.0,0.00042876,120]
[339907473,1728147180755,-1306.65,0.00042876,120]
[339907474,1728147180764,-1233.21,0.00042876,120]
[339907475,1728147180774,-583.48,0.00042876,120]
[339907476,1728147180785,-868.45,0.00042876,120]
[339907477,1728147180800,-500.0,0.00042876,120]
[339907478,1728147180810,-732.59,0.00042876,120]
[339907479,1728147180820,-500.0,0.00042876,120]
[339907480,1728147180829,-1321.45,0.00042876,120]
[339907481,1728147180838,-528.8,0.00042876,120]
[339907482,1728147180848,-658.55,0.00042876,120]
[339907483,1728147180858,-500.0,0.00042876,120]
[339907484,1728147180869,-500.0,0.00042876,120]
[339907485,1728147180879,-500.0,0.00042876,120]
[339907486,1728147180890,-500.0,0.00042876,120]
[339907487,1728147180900,-993.81,0.00042876,120]
[339907488,1728147180910,-500.0,0.00042876,120]
[339907489,1728147180919,-500.0,0.00042876,120]
[339907490,1728147180929,-500.0,0.00042876,120]
[339907491,1728147180939,-500.0,0.00042876,120]
[339907492,1728147180949,-953.14,0.00042876,120]
[339907493,1728147180958,-1392.91,0.00042876,120]
[339907494,1728147180968,-500.0,0.00042876,120]
[339907495,1728147180977,-694.83,0.00042876,120]
[339907496,1728147180987,-500.0,0.00042876,120]
[339907497,1728147180997,-500.0,0.00042876,120]
[339907498,1728147181007,-500.0,0.00042876,120]
[339907499,1728147181016,-500.0,0.00042876,120]
[339907500,1728147181025,-500.0,0.00042876,120]
[339907501,1728147181034,-698.41,0.00042876,120]
[339907502,1728147181046,-771.14,0.00042876,120]
[339907503,1728147181056,-609.10912858,0.00042876,120]
[339907504,1728147181065,-885.57,0.00042876,120]
[339907505,1728147181074,-1011.8,0.00042876,120]
[339907506,1728147181084,-702.92,0.00042876,120]
[339907507,1728147181093,-563.02,0.00042876,120]
[339907508,1728147181103,-1565.99,0.00042876,120]
[339907509,1728147181113,-1294.33,0.00042876,120]
[339907510,1728147181123,-690.04,0.00042876,120]
[339907511,1728147181132,-918.37,0.00042876,120]
[339907512,1728147181142,-500.0,0.00042876,120]
[339907513,1728147181152,-894.45,0.00042876,120]
[339907514,1728147181162,-666.23,0.00042876,120]
[339907515,1728147181172,-500.0,0.00042876,120]
[339907516,1728147181181,-500.0,0.00042876,120]
[339907517,1728147181191,-500.0,0.00042876,120]
[339907518,1728147181200,-500.0,0.00042876,120]
[339907519,1728147181209,-762.45,0.00042876,120]
[339907520,1728147181219,-312.93029247,0.00042876,120]
[339907521,1728147181229,-588.86,0.00042876,120]
[339907522,1728147181238,-1037.04,0.00042876,120]
[339907523,1728147181246,-500.0,0.00042876,120]
[339907524,1728147181255,-729.96,0.00042876,120]
[339907525,1728147181265,-500.0,0.00042876,120]
[339907526,1728147181274,-500.0,0.00042876,120]
[339907527,1728147181284,-922.09,0.00042876,120]
[339907528,1728147181297,-500.0,0.00042876,120]
[339907529,1728147181306,-500.0,0.00042876,120]
[339907530,1728147181315,-500.0,0.00042876,120]
[339907531,1728147181326,-1207.02,0.00042876,120]
[339907532,1728147181336,-500.0,0.00042876,120]
[339907533,1728147181347,-500.0,0.00042876,120]
[339907534,1728147181356,-1060.1,0.00042876,120]
[339907535,1728147181365,-500.0,0.00042876,120]
[339907536,1728147181375,-500.0,0.00042876,120]
[339907537,1728147181384,-500.0,0.00042876,120]
[339907538,1728147181394,-501.25,0.00042876,120]
[339907539,1728147181404,-668.81,0.00042876,120]
[339907540,1728147181415,-500.0,0.00042876,120]
[339907541,1728147181428,-525.19,0.00042876,120]
[339907542,1728147181438,-500.0,0.00042876,120]
[339907543,1728147181448,-500.0,0.00042876,120]
[339907544,1728147181457,-500.0,0.00042876,120]
[339907545,1728147181468,-648.61,0.00042876,120]
[339907546,1728147181478,-500.0,0.00042876,120]
[339907547,1728147181488,-500.0,0.00042876,120]
[339907548,1728147181499,-1480.12,0.00042876,120]
[339907549,1728147181509,-500.0,0.00042876,120]
[339907550,1728147181519,-500.0,0.00042876,120]
[339907551,1728147181529,-1830.42,0.00042876,120]
[339907552,1728147181540,-500.0,0.00042876,120]
[339907553,1728147181550,-1094.29,0.00042876,120]
[339907554,1728147181560,-692.2,0.00042876,120]
[339907555,1728147181570,-1171.31,0.00042876,120]
[339907556,1728147181580,-500.0,0.00042876,120]
[339907557,1728147181590,-500.0,0.00042876,120]
[339907558,1728147181599,-980.64,0.00042876,120]
[339907559,1728147181610,-993.33,0.00042876,120]
[339907560,1728147181619,-500.0,0.00042876,120]
[339907561,1728147181629,-1156.11,0.00042876,120]
[339907562,1728147181639,-759.97,0.00042876,120]
[339907563,1728147181649,-500.0,0.00042876,120]
[339907564,1728147181659,-500.0,0.00042876,120]
[339907565,1728147181669,-500.0,0.00042876,120]
[339907566,1728147181679,-500.0,0.00042876,120]
[339907567,1728147181690,-809.87,0.00042876,120]
[339907568,1728147181700,-500.0,0.00042876,120]
[339907569,1728147181711,-498.69132494,0.00042876,120]
[339907570,1728147181721,-500.0,0.00042876,120]
[339907571,1728147181732,-500.0,0.00042876,120]
[339907572,1728147181742,-1128.79,0.00042876,120]
[339907573,1728147181753,-620.59,0.00042876,120]
[339907574,1728147181763,-1212.72,0.00042876,120]
[339907575,1728147181773,-500.0,0.00042876,120]
[339907576,1728147181784,-1002.95,0.00042876,120]
[339907577,1728147181797,-737.61,0.00042876,120]
[339907578,1728147181808,-500.0,0.00042876,120]
[339907579,1728147181818,-524.73,0.00042876,120]
[339907580,1728147181828,-1377.95,0.00042876,120]
[339907581,1728147181839,-1543.57,0.00042876,120]
[339907582,1728147181849,-813.84,0.00042876,120]
[339907583,1728147181859,-500.0,0.00042876,120]
[339907584,1728147181869,-531.1,0.00042876,120]
[339907585,1728147181878,-500.0,0.00042876,120]
[339907586,1728147181888,-500.0,0.00042876,120]
[339907587,1728147181898,-961.07,0.00042876,120]
[339907588,1728147181908,-784.98,0.00042876,120]
[339907589,1728147181917,-917.69,0.00042876,120]
[339907590,1728147181927,-500.0,0.00042876,120]
[339907591,1728147181938,-711.97,0.00042876,120]
[339907592,1728147181947,-500.0,0.00042876,120]
[339907593,1728147181957,-500.0,0.00042876,120]
[339907594,1728147181967,-500.0,0.00042876,120]
[339907595,1728147181977,-906.22,0.00042876,120]
[339907596,1728147181987,-782.36,0.00042876,120]
[339907597,1728147181997,-677.3,0.00042876,120]
[339907598,1728147182007,-500.0,0.00042876,120]
[339907599,1728147182017,-500.0,0.00042876,120]
[339907600,1728147182026,-910.94,0.00042876,120]
[339907601,1728147182036,-1205.88,0.00042876,120]
[339907602,1728147182050,-1344.47,0.00042876,120]
[339907603,1728147182060,-542.61,0.00042876,120]
[339907604,1728147182071,-500.0,0.00042876,120]
[339907605,1728147182081,-814.32,0.00042876,120]
[339907606,1728147182092,-500.0,0.00042876,120]
[339907607,1728147182102,-948.43,0.00042876,120]
[339907608,1728147182113,-500.0,0.00042876,120]
[339907609,1728147182123,-676.76,0.00042876,120]
[339907610,1728147182132,-500.0,0.00042876,120]
[339907611,1728147182143,-1066.49,0.00042876,120]
[339907612,1728147182153,-500.0,0.00042876,120]
[339907613,1728147182163,-500.0,0.00042876,120]
[339907614,1728147182173,-1541.44,0.00042876,120]
[339907615,1728147182183,-500.0,0.00042876,120]
[339907616,1728147182194,-500.0,0.00042876,120]
[339907617,1728147182204,-500.0,0.00042876,120]
[339907618,1728147182215,-500.0,0.00042876,120]
[339907619,1728147182225,-500.0,0.00042876,120]
[339907620,1728147182235,-500.0,0.00042876,120]
[339907621,1728147182246,-1320.61,0.00042876,120]
[339907622,1728147182256,-659.62,0.00042876,120]
[339907623,1728147182266,-500.0,0.00042876,120]
[339907624,1728147182276,-500.0,0.00042876,120]
[339907625,1728147182287,-500.0,0.00042876,120]
[339907626,1728147182299,-1392.32,0.00042876,120]
[339907627,1728147182309,-1117.39,0.00042876,120]
[339907628,1728147182319,-500.0,0.00042876,120]
[339907629,1728147182329,-500.0,0.00042876,120]
[339907630,1728147182339,-500.0,0.00042876,120]
[339907631,1728147182349,-500.0,0.00042876,120]
[339907632,1728147182359,-500.0,0.00042876,120]
[339907633,1728147182369,-1450.24,0.00042876,120]
[339907634,1728147182379,-995.8,0.00042876,120]
[339907635,1728147182389,-2170.1,0.00042876,120]
[339907636,1728147182399,-500.0,0.00042876,120]
[339907637,1728147182410,-877.02,0.00042876,120]
[339907638,1728147182420,-1452.19,0.00042876,120]
[339907639,1728147182430,-182.03,0.00042876,120]
[339907640,1728147182441,-500.0,0.00042876,120]
[339907641,1728147182451,-746.73,0.00042876,120]
[339907642,1728147182461,-1409.59,0.00042876,120]
[339907643,1728147182471,-1020.04,0.00042876,120]
[339907644,1728147182480,-666.18,0.00042876,120]
[339907645,1728147182490,-679.22,0.00042876,120]
[339907646,1728147182500,-388.72,0.00042876,120]
[339907647,1728147182510,-500.0,0.00042876,120]
[339907648,1728147182520,-422.63232231,0.00042876,120]
[339907649,1728147182530,-569.48,0.00042876,120]
[339907650,1728147182541,-980.44,0.00042876,120]
[339907651,1728147182552,-1089.28,0.00042876,120]
[339907652,1728147182562,-568.81,0.00042876,120]
[339907653,1728147182573,-1354.9,0.00042876,120]
[339907654,1728147182583,-500.0,0.00042876,120]
[339907655,1728147182593,-500.0,0.00042876,120]
[339907656,1728147182604,-3092.09,0.00042876,120]
[339907657,1728147182615,-1117.04,0.00042876,120]
[339907658,1728147182624,-500.0,0.00042876,120]
[339907659,1728147182635,-1673.25,0.00042876,120]
[339907660,1728147182645,-500.0,0.00042876,120]
[339907661,1728147182655,-1400.9,0.00042876,120]
[339907662,1728147182665,-500.0,0.00042876,120]
[339907663,1728147182675,-521.3,0.00042876,120]
[339907664,1728147182685,-500.0,0.00042876,120]
[339907665,1728147182695,-500.0,0.00042876,120]
[339907666,1728147182705,-957.32,0.00042876,120]
[339907667,1728147182715,-532.54,0.00042876,120]
[339907668,1728147182726,-500.0,0.00042876,120]
[339907669,1728147182737,-613.27,0.00042876,120]
[339907670,1728147182747,-1461.62,0.00042876,120]
[339907671,1728147182758,-551.78,0.00042876,120]
[339907672,1728147182769,-500.0,0.00042876,120]
[339907673,1728147182780,-815.17,0.00042876,120]
[339907674,1728147182792,-833.62,0.00042876,120]
[339907675,1728147182802,-749.79,0.00042876,120]
[339907676,1728147182813,-973.8,0.00042876,120]
[339907677,1728147182824,-500.0,0.00042876,120]
[339907678,1728147182836,-500.0,0.00042876,120]
[339907679,1728147182847,-500.0,0.00042876,120]
[339907680,1728147182858,-500.0,0.00042876,120]
[339907681,1728147182869,-500.0,0.00042876,120]
[339907682,1728147182879,-500.0,0.00042876,120]
[339907683,1728147182890,-595.63,0.00042876,120]
[339907684,1728147182901,-895.17,0.00042876,120]
[339907685,1728147182912,-538.69,0.00042876,120]
[339907686,1728147182922,-716.85,0.00042876,120]
[339907687,1728147182933,-552.5,0.00042876,120]
[339907688,1728147182943,-500.0,0.00042876,120]
[339907689,1728147182954,-500.0,0.00042876,120]
[339907690,1728147182965,-500.0,0.00042876,120]
[339907691,1728147182976,-734.46,0.00042876,120]
[339907692,1728147182986,-500.0,0.00042876,120]
[339907693,1728147182997,-500.0,0.00042876,120]
[339907694,1728147183007,-744.23,0.00042876,120]
[339907695,1728147183017,-500.0,0.00042876,120]
[339907696,1728147183028,-544.13,0.00042876,120]
[339907697,1728147183038,-1043.16,0.00042876,120]
[339907698,1728147183051,-649.58,0.00042876,120]
[339907699,1728147183061,-526.24,0.00042876,120]
[339907700,1728147183071,-500.0,0.00042876,120]
[339907701,1728147183082,-500.0,0.00042876,120]
[339907702,1728147183093,-1194.16,0.00042876,120]
[339907703,1728147183102,-500.0,0.00042876,120]
[339907704,1728147183113,-837.39,0.00042876,120]
[339907705,1728147183123,-500.0,0.00042876,120]
[339907706,1728147183133,-500.0,0.00042876,120]
[339907707,1728147183144,-612.42,0.00042876,120]
[339907708,1728147183153,-510.48,0.00042876,120]
[339907709,1728147183164,-1245.75,0.00042876,120]
[339907710,1728147183174,-500.0,0.00042876,120]
[339907711,1728147183184,-896.41,0.00042876,120]
[339907712,1728147183194,-570.6,0.00042876,120]
[339907713,1728147183204,-912.71,0.00042876,120]
[339907714,1728147183214,-935.17,0.00042876,120]
[339907715,1728147183224,-500.0,0.00042876,120]
[339907716,1728147183234,-1275.76,0.00042876,120]
[339907717,1728147183244,-500.18,0.00042876,120]
[339907718,1728147183254,-501.94744087,0.00042876,120]
[339907719,1728147183264,-500.0,0.00042876,120]
[339907720,1728147183274,-712.54,0.00042876,120]
[339907721,1728147183284,-500.0,0.00042876,120]
[339907722,1728147183295,-713.19,0.00042876,120]
[339907723,1728147183305,-645.72,0.00042876,120]
[339907724,1728147183315,-1057.7,0.00042876,120]
[339907725,1728147183325,-749.26,0.00042876,120]
[339907726,1728147183335,-500.0,0.00042876,120]
[339907727,1728147183346,-1037.04,0.00042876,120]
[339907728,1728147183356,-688.31,0.00042876,120]
[339907729,1728147183366,-500.0,0.00042876,120]
[339907730,1728147183376,-700.86,0.00042876,120]
[339907731,1728147183386,-997.54,0.00042876,120]
[339907732,1728147183397,-534.2,0.00042876,120]
[339907733,1728147183407,-607.13,0.00042876,120]
[339907734,1728147183418,-500.98,0.00042876,120]
[339907735,1728147183433,-1204.65,0.00042876,120]
[339907736,1728147183443,-500.0,0.00042876,120]
[339907737,1728147183453,-542.57,0.00042876,120]
[339907738,1728147183464,-539.24,0.00042876,120]
[339907739,1728147183474,-500.0,0.00042876,120]
[339907740,1728147183484,-1294.2,0.00042876,120]
[339907741,1728147183493,-500.0,0.00042876,30]
[339907742,1728147183504,-6114.95,0.00042876,120]
[339907743,1728147183513,-610.97,0.00042876,120]
[339907744,1728147183523,-1197.02,0.00042876,120]
[339907745,1728147183533,-500.0,0.00042876,120]
[339907746,1728147183544,-801.24,0.00042876,120]
[339907747,1728147183554,-533.72,0.00042876,120]
[339907748,1728147183564,-500.0,0.00042876,120]
[339907749,1728147183574,-500.0,0.00042876,120]
[339907750,1728147183584,-973.61,0.00042876,120]
[339907751,1728147183594,-1102.84,0.00042876,120]
[339907752,1728147183604,-743.21,0.00042876,120]
[339907753,1728147183613,-616.19,0.00042876,120]